fUST/lending_fUST_20251231
["ID","MTS","AMOUNT","RATE_DAILY","PERIOD"]
[400118605,1767133851238,-250.0,0.000277,10]
[400118606,1767133851247,-597589.89832664,0.0002772,2]
[400118607,1767133851256,-500.0,0.00027731,5]
[400118608,1767133851269,-376.3220282,0.00027783,30]
[400118609,1767133851279,-2000.0,0.00027793,7]
[400118610,1767133851288,-1291.0,0.00027794,2]
[400118611,1767133851298,-1291.0,0.00027797,7]
[400118612,1767133851308,-250.0,0.000278,10]
[400118613,1767133851317,-1291.0,0.00027863,2]
[400118614,1767133851327,-250.0,0.000279,10]
[400118615,1767133851336,-600.0,0.0002793,2]
[400118616,1767133851346,-1291.0,0.00027936,2]
[400118617,1767133851356,-250.0,0.00027944,5]
[400118618,1767133851365,-250.0,0.00027944,5]
[400118619,1767133851375,-5000.0,0.00027944,5]
[400118620,1767133851384,-152.38386934,0.00027944,5]
[400118621,1767133851393,-151.0,0.00027944,5]
[400118622,1767133851404,-151.0,0.00027944,5]
[400118623,1767133851414,-496.47127164,0.00027944,5]
[400118624,1767133851425,-2398.4119403,0.00027944,5]
[400118625,1767133851435,-151.0,0.00027944,5]
[400118626,1767133851444,-514.84070869,0.00027944,5]
[400118627,1767133851454,-151.0,0.00027944,5]
[400118628,1767133851465,-2487.15318209,0.00027944,5]
[400118629,1767133851475,-500.0,0.00027944,5]
[400118630,1767133851484,-151.0,0.00027944,5]
[400118631,1767133851493,-533.88981491,0.00027944,5]
[400118632,1767133851503,-151.0,0.00027944,5]
[400118633,1767133851512,-2579.17784983,0.00027944,5]
[400118634,1767133851522,-500.0,0.00027944,5]
[400118635,1767133851531,-151.0,0.00027944,5]
[400118636,1767133851540,-553.64373807,0.00027944,5]
[400118637,1767133851550,-1786.62369794,0.00027944,5]
[400118638,1767133851560,-151.0,0.00027944,5]
[400118639,1767133851569,-500.0,0.00027944,5]
[400118640,1767133851578,-151.0,0.00027944,5]
[400118641,1767133851588,-574.12855637,0.00027944,5]
[400118642,1767133851598,-151.0,0.00027944,5]
[400118643,1767133851608,-500.0,0.00027944,5]
[400118644,1767133851618,-151.0,0.00027944,5]
[400118645,1767133851628,-595.37131296,0.00027944,5]
[400118646,1767133851708,-154.51578537,0.00027944,5]
[400118647,1767133851719,-500.0,0.00027944,5]
[400118648,1767133851729,-151.0,0.00027944,5]
[400118649,1767133851738,-498.03434617,0.00027944,5]
[400118650,1767133851846,-119.36570537,0.00027944,5]
[400118651,1767133851856,-500.0,0.00027944,5]
[400118652,1767133851865,-151.0,0.00027944,5]
[400118653,1767133851875,-151.0,0.00027944,5]
[400118654,1767133851884,-640.24385345,0.00027944,5]
[400118655,1767133851894,-500.0,0.00027944,5]
[400118656,1767133851904,-151.0,0.00027944,5]
[400118657,1767133851913,-151.0,0.00027944,5]
[400118658,1767133851923,-663.93287602,0.00027944,5]
[400118659,1767133851936,-500.0,0.00027944,5]
[400118660,1767133851945,-151.0,0.00027944,5]
[400118661,1767133851955,-151.0,0.00027944,5]
[400118662,1767133851964,-500.0,0.00027944,5]
[400118663,1767133851975,-688.49839244,0.00027944,5]
[400118664,1767133851985,-151.0,0.00027944,5]
[400118665,1767133851994,-500.0,0.00027944,5]
[400118666,1767133852005,-713.97283296,0.00027944,5]
[400118667,1767133852014,-151.0,0.00027944,5]
[400118668,1767133852023,-740.38982778,0.00027944,5]
[400118669,1767133852033,-500.0,0.00027944,5]
[400118670,1767133852043,-151.0,0.00027944,5]
[400118671,1767133852053,-500.0,0.00027944,5]
[400118672,1767133852062,-151.0,0.00027944,5]
[400118673,1767133852072,-767.7842514,0.00027944,5]
[400118674,1767133852082,-181.08010149,0.00027944,5]
[400118675,1767133852091,-796.19226871,0.00027944,5]
[400118676,1767133852101,-151.0,0.00027944,5]
[400118677,1767133852112,-500.0,0.00027944,5]
[400118678,1767133852121,-187.78006525,0.00027944,5]
[400118679,1767133852131,-151.0,0.00027944,5]
[400118680,1767133852140,-346.78722394,0.00027944,5]
[400118681,1767133852150,-500.0,0.00027944,5]
[400118682,1767133852159,-500.0,0.00027944,5]
[400118683,1767133852169,-194.72792766,0.00027944,5]
[400118684,1767133852178,-500.0,0.00027944,5]
[400118685,1767133852188,-500.0,0.00027944,5]
[400118686,1767133852197,-290.81670523,0.00027944,5]
[400118687,1767133852206,-500.0,0.00027944,5]
[400118688,1767133852215,-329.95937148,0.00027944,5]
[400118689,1767133852225,-250.0,0.00027944,5]
[400118690,1767133852235,-151.0,0.00027944,5]
[400118691,1767133852244,-250.0,0.00027944,5]
[400118692,1767133852254,-151.0,0.00027944,5]
[400118693,1767133852263,-151.0,0.00027944,5]
[400118694,1767133852272,-151.0,0.00027944,5]
[400118695,1767133852282,-151.0,0.00027944,5]
[400118696,1767133852291,-151.0,0.00027944,5]
[400118697,1767133852300,-151.0,0.00027944,5]
[400118698,1767133852310,-151.0,0.00027944,5]
[400118699,1767133852319,-181.08010149,0.00027944,5]
[400118700,1767133852329,-151.0,0.00027944,5]
[400118701,1767133852338,-187.78006525,0.00027944,5]
[400118702,1767133852347,-151.0,0.00027944,5]
[400118703,1767133852357,-161.45831758,0.00027944,5]
[400118704,1767133852367,-151.0,0.00027944,5]
[400118705,1767133852376,-151.0,0.00027944,5]
[400118706,1767133852387,-151.0,0.00027944,5]
[400118707,1767133852396,-151.0,0.00027944,5]
[400118708,1767133852405,-239.67988965,0.00027944,5]
[400118709,1767133852415,-151.0,0.00027944,5]
[400118710,1767133852424,-151.0,0.00027944,5]
[400118711,1767133852434,-151.0,0.00027944,5]
[400118712,1767133852444,-151.0,0.00027944,5]
[400118713,1767133852453,-151.0,0.00027944,5]
[400118714,1767133852462,-151.0,0.00027944,5]
[400118715,1767133852471,-250.0,0.00027944,5]
[400118716,1767133852481,-151.0,0.00027944,5]
[400118717,1767133852490,-250.0,0.00027944,5]
[400118718,1767133852500,-384.82830815,0.00027945,5]
[400118719,1767133852509,-1291.0,0.00027959,2]
[400118720,1767133852519,-3157.0794525,0.00027999,8]
[400118721,1767133852532,-920.0098551,0.00027999,8]
[400118722,1767133852543,-625.58105007,0.00027999,8]
[400118723,1767133852599,-261.63087376,0.00027944,5]
[400118724,1767133852609,-297.32964233,0.00027999,8]
[400118725,1767133852619,-378.2092095,0.00028,8]
[400118726,1767133852628,-250.0,0.00028,10]
[400118727,1767133852639,-30.18321054,0.00028,2]
[400118728,1767133852650,-15277.43858083,0.00028,2]
[400118729,1767133852659,-595.83744368,0.00028,2]
[400118730,1767133852668,-519.64420806,0.00028,2]
[400118731,1767133852678,-2719.594982,0.00028,2]
[400118732,1767133852688,-150.0,0.00028,5]
[400118733,1767133852697,-265.3,0.00028051,2]
[400118734,1767133852707,-250.0,0.000281,10]
[400118735,1767133852716,-8849.63643456,0.00028189,2]
[400118736,1767133852750,-671.77936835,0.00028189,2]
[400118737,1767133852761,-4831.2685639,0.00028189,2]
[400118738,1767133853128,-138.98932448,0.00013698,2]
[400118739,1767133853679,-361.01067552,0.00013698,2]
[400118740,1767133853689,-500.0,0.00013698,2]
[400118741,1767133853699,-500.0,0.00013698,2]
[400118742,1767133853709,-501.25655426,0.00013698,2]
[400118743,1767133853719,-303.3898112,0.00023973,2]
[400118744,1767133853729,-1364.0,0.00024875,2]
[400118745,1767133853738,-151.0,0.00027397,7]
[400118746,1767133853748,-151.0,0.00027397,7]
[400118747,1767133853759,-151.0,0.00027397,7]
[400118748,1767133853769,-151.0,0.00027397,7]
[400118749,1767133853778,-151.0,0.00027397,7]
[400118750,1767133853787,-151.0,0.00027397,7]
[400118751,1767133853797,-151.0,0.00027397,7]
[400118752,1767133853807,-151.0,0.00027397,7]
[400118753,1767133853817,-1364.0,0.00027875,2]
[400118754,1767133853827,-599.6069297,0.00028082,30]
[400118755,1767133853836,-5478.63524089,0.00028189,2]
[400118756,1767133853848,-38855.56004482,0.00028189,2]
[400118757,1767133875494,150.0,0.00012635,2]
[400118794,1767134032510,293.9,0.00012233,2]
[400118800,1767134095064,-325.2294301,0.00012816,2]
[400118801,1767134113198,325.2294301,0.00012771,2]
[400118802,1767134113958,286.02,0.00012261,2]
[400118803,1767134124915,-258.40602491,0.00012845,2]
[400118804,1767134136026,258.40602491,0.00012771,2]
[400118806,1767134194354,279.09,0.0001223,2]
[400118817,1767134273385,275.54,0.00012235,2]
[400118818,1767134279954,255.93,9.99e-05,2]
[400118822,1767134353061,272.03,0.00012228,2]
[400118824,1767134410032,-544.06,0.00012811,2]
[400118825,1767134410056,-64.57334278,0.00012811,2]
[400118826,1767134411807,-531.82573339,0.00012811,2]
[400118827,1767134427947,1140.45907617,0.00012771,2]
[400118828,1767134433376,261.65,0.00012335,2]
[400118829,1767134478937,500.0,0.00028767,120]
[400118830,1767134515625,258.32,0.00012418,2]
[400118832,1767134595412,255.03,0.00012491,2]
[400118867,1767134675826,251.78,0.00012486,2]
[400118899,1767134756255,248.58,0.00012496,2]
[400118927,1767134835578,245.41,0.00012491,2]
[400118937,1767134915793,242.29,0.00012493,2]
[400118942,1767134963096,-4.60092383,0.00012811,2]
[400118943,1767134963119,-235.88589602,0.00012831,2]
[400118944,1767134963141,-300.0,0.0001296,2]
[400118945,1767134963166,-1600.08720691,0.00012961,2]
[400118947,1767134997270,239.21,0.00012437,2]
[400118972,1767135032309,-186.29158513,0.00012864,2]
[400118973,1767135032319,-122.32741488,0.00012864,2]
[400118986,1767135032448,-479.67258512,0.00012864,2]
[400118988,1767135032457,-7669.70788874,0.000129,2]
[400118990,1767135032468,-500.0,0.0001296,2]
[400118992,1767135032477,-624.8404065,0.0001296,2]
[400118993,1767135032487,-2150.92416133,0.0001296,2]
[400118994,1767135032496,-931.15495833,0.0001296,2]
[400118995,1767135032508,-1219.769203,0.0001296,2]
[400118996,1767135032517,-500.0,0.0001296,2]
[400118997,1767135032527,-2150.92416133,0.0001296,2]
[400118998,1767135032536,-300.0,0.0001296,2]
[400118999,1767135032546,-300.0,0.0001296,2]
[400119000,1767135032556,-1200.0,0.0001296,2]
[400119001,1767135032566,-22545.90246975,0.00012961,2]
[400119002,1767135032603,-500.0,0.0001296,2]
[400119003,1767135032613,-150.02727789,0.0001296,2]
[400119004,1767135032625,-2000.89688344,0.0001296,2]
[400119005,1767135032634,-11745.92001571,0.00012961,2]
[400119032,1767135038362,-2957.9696329,0.000129,2]
[400119033,1767135038373,-153.15517473,0.0001296,2]
[400119034,1767135038383,-1674.20427639,0.0001296,2]
[400119035,1767135038394,-476.71988494,0.0001296,2]
[400119036,1767135038404,-500.0,0.0001296,2]
[400119037,1767135038413,-2150.92416133,0.0001296,2]
[400119038,1767135038422,-2150.92416133,0.0001296,2]
[400119039,1767135038433,-2150.92416133,0.0001296,2]
[400119040,1767135038442,-2150.92416133,0.0001296,2]
[400119041,1767135038452,-2150.92416133,0.0001296,2]
[400119042,1767135038462,-500.0,0.0001296,2]
[400119043,1767135038473,-500.0,0.0001296,2]
[400119044,1767135038483,-500.0,0.0001296,2]
[400119045,1767135038492,-614.00374773,0.0001296,2]
[400119046,1767135038502,-500.0,0.0001296,2]
[400119047,1767135038512,-500.0,0.0001296,2]
[400119048,1767135038521,-500.0,0.0001296,2]
[400119049,1767135038530,-329.3902901,0.0001296,2]
[400119050,1767135038540,-187.7624438,0.0001296,2]
[400119051,1767135038549,-500.0,0.0001296,2]
[400119052,1767135038559,-520.75550584,0.0001296,2]
[400119054,1767135038568,-500.0,0.0001296,2]
[400119055,1767135038577,-500.0,0.0001296,2]
[400119057,1767135038587,-500.0,0.0001296,2]
[400119059,1767135038596,-500.0,0.0001296,2]
[400119061,1767135038606,-500.0,0.0001296,2]
[400119064,1767135038616,-358.80947209,0.0001296,2]
[400119066,1767135038626,-500.0,0.0001296,2]
[400119068,1767135038635,-500.0,0.0001296,2]
[400119069,1767135038644,-500.0,0.0001296,2]
[400119071,1767135038654,-517.44954891,0.0001296,2]
[400119073,1767135038664,-500.0,0.0001296,2]
[400119075,1767135038673,-964108.09030763,0.00012961,2]
[400119078,1767135038683,-181.37297802,0.00013,2]
[400119079,1767135038692,-478.41,0.0001303,2]
[400119081,1767135038702,-295.0,0.00013059,2]
[400119083,1767135038711,-1106.0,0.00013059,2]
[400119085,1767135038721,-50000.0,0.0001306,2]
[400119087,1767135038730,-500.0,0.00013064,2]
[400119089,1767135038744,-151.0,0.000131,2]
[400119091,1767135038754,-151.0,0.000131,2]
[400119093,1767135038763,-151.0,0.000131,2]
[400119095,1767135038773,-151.0,0.000131,2]
[400119097,1767135038783,-151.0,0.000131,2]
[400119099,1767135038791,-500.0,0.00013273,2]
[400119101,1767135038801,-500.0,0.00013273,2]
[400119103,1767135038810,-500.26362116,0.00013273,2]
[400119105,1767135038819,-500.0,0.00013273,2]
[400119107,1767135038828,-500.0,0.00013273,2]
[400119109,1767135038837,-500.0,0.00013273,2]
[400119111,1767135038846,-500.0,0.00013273,2]
[400119113,1767135038855,-500.0,0.00013273,2]
[400119115,1767135038864,-500.0,0.00013273,2]
[400119116,1767135038874,-500.0,0.00013273,2]
[400119118,1767135038883,-500.0,0.00013273,2]
[400119120,1767135038892,-500.0,0.00013273,2]
[400119122,1767135038902,-500.0,0.00013273,2]
[400119135,1767135038994,-500.0,0.00013273,2]
[400119137,1767135039025,-500.0,0.00013273,2]
[400119140,1767135039035,-500.0,0.00013273,2]
[400119141,1767135039045,-500.0,0.00013273,2]
[400119143,1767135039054,-500.0,0.00013273,2]
[400119145,1767135039065,-217.77534712,0.00013273,2]
[400119147,1767135039075,-283.15409111,0.00013273,2]
[400119150,1767135039084,-500.0,0.00013273,2]
[400119151,1767135039094,-500.0,0.00013273,2]
[400119153,1767135039103,-605.28720895,0.00013273,2]
[400119155,1767135039113,-500.0,0.00013273,2]
[400119157,1767135039123,-500.0,0.00013273,2]
[400119159,1767135039132,-500.15325233,0.00013273,2]
[400119161,1767135039142,-165.40870093,0.00013273,2]
[400119163,1767135039151,-158.33685068,0.00013273,2]
[400119166,1767135039161,-500.0,0.00013273,2]
[400119167,1767135039171,-500.0,0.00013273,2]
[400119169,1767135039181,-500.0,0.00013273,2]
[400119171,1767135039191,-500.0,0.00013273,2]
[400119173,1767135039200,-500.0,0.00013273,2]
[400119175,1767135039209,-500.0,0.00013273,2]
[400119177,1767135039219,-465.37686128,0.00013273,2]
[400119179,1767135039228,-500.0,0.00013273,2]
[400119181,1767135039238,-500.0,0.00013273,2]
[400119183,1767135039247,-500.0,0.00013273,2]
[400119185,1767135039256,-500.0,0.00013273,2]
[400119187,1767135039267,-500.0,0.00013273,2]
[400119189,1767135039276,-500.0,0.00013273,2]
[400119190,1767135039286,-238.68810806,0.00013273,2]
[400119192,1767135039295,-500.0,0.00013273,2]
[400119194,1767135039304,-268.5150951,0.00013273,2]
[400119196,1767135039314,-535.90784509,0.00013273,2]
[400119198,1767135039323,-500.0,0.00013273,2]
[400119200,1767135039332,-171.46724049,0.00013273,2]
[400119201,1767135039341,-500.0,0.00013273,2]
[400119203,1767135039351,-500.0,0.00013273,2]
[400119205,1767135039361,-500.0,0.00013273,2]
[400119207,1767135039371,-500.0,0.00013273,2]
[400119209,1767135039380,-500.0,0.00013273,2]
[400119211,1767135039389,-500.0,0.00013273,2]
[400119213,1767135039398,-500.0,0.00013273,2]
[400119215,1767135039408,-500.0,0.00013273,2]
[400119217,1767135039417,-500.0,0.00013273,2]
[400119219,1767135039427,-500.41782704,0.00013273,2]
[400119221,1767135039436,-270.09084155,0.00013273,2]
[400119223,1767135039445,-185.30799155,0.00013273,2]
[400119224,1767135039455,-500.0,0.00013273,2]
[400119226,1767135039464,-500.0,0.00013273,2]
[400119227,1767135039473,-500.0,0.00013273,2]
[400119229,1767135039482,-500.0,0.00013273,2]
[400119231,1767135039492,-500.0,0.00013273,2]
[400119232,1767135039501,-500.0,0.00013273,2]
[400119233,1767135039511,-500.0,0.00013273,2]
[400119234,1767135039520,-500.0,0.00013273,2]
[400119235,1767135039530,-500.0,0.00013273,2]
[400119236,1767135039539,-500.0,0.00013273,2]
[400119237,1767135039548,-210.52500245,0.00013273,2]
[400119238,1767135039557,-500.0,0.00013273,2]
[400119239,1767135039566,-500.0,0.00013273,2]
[400119240,1767135039576,-153.38,0.00013273,2]
[400119241,1767135039586,-10129.02425647,0.00013291,2]
[400119242,1767135039596,-600.0,0.00013322,2]
[400119243,1767135039606,-500.0,0.00013338,2]
[400119244,1767135039616,-300.0,0.0001343,2]
[400119245,1767135039625,-300.0,0.0001343,2]
[400119246,1767135039635,-300.0,0.0001343,2]
[400119247,1767135039644,-300.0,0.0001343,2]
[400119248,1767135039653,-300.0,0.0001343,2]
[400119249,1767135039663,-300.0,0.0001343,2]
[400119250,1767135039673,-300.0,0.0001343,2]
[400119251,1767135039682,-300.0,0.0001343,2]
[400119252,1767135039692,-300.0,0.0001343,2]
[400119253,1767135039702,-300.0,0.0001343,2]
[400119254,1767135039711,-300.0,0.0001343,2]
[400119255,1767135039721,-300.0,0.0001343,2]
[400119256,1767135039731,-300.0,0.0001343,2]
[400119257,1767135039740,-300.0,0.0001343,2]
[400119258,1767135039749,-300.0,0.0001343,2]
[400119259,1767135039759,-10000.0,0.0001354,2]
[400119260,1767135039768,-153.4,0.00013547,2]
[400119261,1767135039778,-500.0,0.00013612,2]
[400119262,1767135039787,-717.62,0.00013622,2]
[400119263,1767135039796,-300.0,0.00013673,2]
[400119264,1767135039805,-2957.9696329,0.0001368,2]
[400119265,1767135039814,-500.0,0.00013698,2]
[400119266,1767135039823,-513.22996032,0.00013698,2]
[400119267,1767135039832,-458.51216997,0.00013698,2]
[400119268,1767135039842,-308.96684295,0.00013698,2]
[400119269,1767135039852,-500.0,0.00013698,2]
[400119271,1767135039861,-500.0,0.00013698,2]
[400119272,1767135039871,-500.0,0.00013698,2]
[400119273,1767135039880,-500.0,0.00013698,2]
[400119274,1767135039889,-500.0,0.00013698,2]
[400119275,1767135039899,-230.05403968,0.00013698,2]
[400119276,1767135039908,-500.0,0.00013698,2]
[400119277,1767135039917,-500.0,0.00013698,2]
[400119278,1767135039927,-500.0,0.00013698,2]
[400119279,1767135039936,-500.0,0.00013698,2]
[400119280,1767135039946,-507.59575154,0.00013698,2]
[400119281,1767135039955,-500.0,0.00013698,2]
[400119282,1767135039964,-500.0,0.00013698,2]
[400119283,1767135039974,-500.0,0.00013698,2]
[400119284,1767135039983,-500.0,0.00013698,2]
[400119285,1767135039997,-500.0,0.00013698,2]
[400119286,1767135040007,-528.98647481,0.00013698,2]
[400119287,1767135040015,-500.0,0.00013698,2]
[400119288,1767135040025,-500.0,0.00013698,2]
[400119289,1767135040035,-500.0,0.00013698,2]
[400119290,1767135040045,-500.0,0.00013698,2]
[400119291,1767135040054,-500.0,0.00013698,2]
[400119292,1767135040064,-500.0,0.00013698,2]
[400119293,1767135040074,-500.0,0.00013698,2]
[400119294,1767135040083,-500.0,0.00013698,2]
[400119295,1767135040092,-500.0,0.00013698,2]
[400119296,1767135040102,-500.0,0.00013698,2]
[400119297,1767135040111,-528.29778119,0.00013698,2]
[400119298,1767135040120,-500.0,0.00013698,2]
[400119300,1767135040130,-500.0,0.00013698,2]
[400119301,1767135040139,-509.74606026,0.00013698,2]
[400119302,1767135040148,-1378.39,0.00013698,2]
[400119304,1767135040158,-1378.39,0.00013698,2]
[400119306,1767135040167,-1378.39,0.00013698,2]
[400119307,1767135040176,-1378.39,0.00013698,2]
[400119309,1767135040185,-1378.39,0.00013698,2]
[400119311,1767135040195,-1378.39,0.00013698,2]
[400119313,1767135040204,-1378.39,0.00013698,2]
[400119315,1767135040213,-1378.39,0.00013698,2]
[400119317,1767135040222,-1378.39,0.00013698,2]
[400119319,1767135040232,-1378.39,0.00013698,2]
[400119320,1767135040241,-1378.39,0.00013698,2]
[400119322,1767135040250,-1378.39,0.00013698,2]
[400119324,1767135040260,-1378.39,0.00013698,2]
[400119326,1767135040269,-1378.39,0.00013698,2]
[400119328,1767135040279,-1378.39,0.00013698,2]
[400119330,1767135040289,-1378.39,0.00013698,2]
[400119333,1767135040300,-1378.39,0.00013698,2]
[400119335,1767135040310,-1378.39,0.00013698,2]
[400119336,1767135040322,-1378.39,0.00013698,2]
[400119338,1767135040331,-1378.39,0.00013698,2]
[400119340,1767135040340,-1378.39,0.00013698,2]
[400119342,1767135040350,-1378.39,0.00013698,2]
[400119344,1767135040359,-1378.39,0.00013698,2]
[400119346,1767135040368,-1378.44756015,0.00013698,2]
[400119348,1767135040378,-1514.92,0.00013698,2]
[400119350,1767135040389,-1514.92,0.00013698,2]
[400119352,1767135040398,-1514.92,0.00013698,2]
[400119354,1767135040408,-1514.92,0.00013698,2]
[400119356,1767135040417,-1514.92,0.00013698,2]
[400119358,1767135040427,-1514.92,0.00013698,2]
[400119360,1767135040436,-1514.92,0.00013698,2]
[400119362,1767135040445,-1514.92,0.00013698,2]
[400119364,1767135040455,-1514.92,0.00013698,2]
[400119366,1767135040464,-1514.92,0.00013698,2]
[400119368,1767135040474,-462.39716455,0.00013698,2]
[400119370,1767135040484,-1514.92,0.00013698,2]
[400119372,1767135040493,-1514.92,0.00013698,2]
[400119374,1767135040503,-1514.92,0.00013698,2]
[400119376,1767135040513,-1514.92,0.00013698,2]
[400119378,1767135040522,-1514.92,0.00013698,2]
[400119380,1767135040532,-1514.92,0.00013698,2]
[400119382,1767135040541,-1514.92,0.00013698,2]
[400119384,1767135040551,-1514.92,0.00013698,2]
[400119386,1767135040560,-1514.92,0.00013698,2]
[400119388,1767135040569,-1514.92,0.00013698,2]
[400119390,1767135040579,-1514.92,0.00013698,2]
[400119392,1767135040588,-1514.92,0.00013698,2]
[400119394,1767135040597,-1514.92,0.00013698,2]
[400119396,1767135040607,-1515.12467491,0.00013698,2]
[400119398,1767135040616,-500.0,0.00013699,2]
[400119400,1767135040625,-500.0,0.00013699,2]
[400119402,1767135040638,-159.65835704,0.00013699,2]
[400119404,1767135040654,-599.79272497,0.00013699,2]
[400119406,1767135040664,-500.0,0.00013699,2]
[400119408,1767135040673,-565.47719136,0.00013699,2]
[400119410,1767135040682,-500.0,0.00013699,2]
[400119412,1767135040692,-500.0,0.00013699,2]
[400119414,1767135040701,-501.27213186,0.00013699,2]
[400119416,1767135040710,-500.0,0.00013699,2]
[400119418,1767135040720,-500.0,0.00013699,2]
[400119421,1767135040729,-157.57068447,0.00013699,2]
[400119423,1767135040738,-500.0,0.00013699,2]
[400119425,1767135040748,-500.0,0.00013699,2]
[400119427,1767135040758,-500.0,0.00013699,2]
[400119429,1767135040767,-500.0,0.00013699,2]
[400119431,1767135040776,-500.0,0.00013699,2]
[400119433,1767135040786,-500.0,0.00013699,2]
[400119435,1767135040795,-500.96223077,0.00013699,2]
[400119436,1767135040804,-523.97056295,0.00013699,2]
[400119438,1767135040813,-500.0,0.00013699,2]
[400119440,1767135040822,-303.89032642,0.00013699,2]
[400119442,1767135040832,-500.0,0.00013699,2]
[400119444,1767135040841,-500.0,0.00013699,2]
[400119446,1767135040851,-500.0,0.00013699,2]
[400119448,1767135040860,-510.33806414,0.00013699,2]
[400119450,1767135040870,-500.0,0.00013699,2]
[400119452,1767135040879,-500.35999575,0.00013699,2]
[400119454,1767135040888,-500.0,0.00013699,2]
[400119456,1767135040897,-343.55118679,0.00013699,2]
[400119458,1767135040907,-500.0,0.00013699,2]
[400119460,1767135040916,-500.0,0.00013699,2]
[400119462,1767135040925,-346.40609212,0.00013699,2]
[400119473,1767135041016,-500.0,0.00013699,2]
[400119475,1767135041026,-500.0,0.00013699,2]
[400119477,1767135041036,-500.0,0.00013699,2]
[400119479,1767135041045,-500.0,0.00013699,2]
[400119481,1767135041054,-158.36952314,0.00013699,2]
[400119483,1767135041063,-500.0,0.00013699,2]
[400119485,1767135041073,-500.0,0.00013699,2]
[400119487,1767135041082,-500.0,0.00013699,2]
[400119489,1767135041091,-500.0,0.00013699,2]
[400119491,1767135041100,-500.0,0.00013699,2]
[400119492,1767135041109,-500.0,0.00013699,2]
[400119495,1767135041119,-500.0,0.00013699,2]
[400119497,1767135041128,-500.0,0.00013699,2]
[400119499,1767135041138,-500.0,0.00013699,2]
[400119500,1767135041147,-500.0,0.00013699,2]
[400119502,1767135041157,-500.0,0.00013699,2]
[400119504,1767135041166,-500.0,0.00013699,2]
[400119506,1767135041175,-440.83623024,0.00013699,2]
[400119508,1767135041185,-525.6894208,0.00013699,2]
[400119510,1767135041194,-500.0,0.00013699,2]
[400119512,1767135041204,-500.0,0.00013699,2]
[400119514,1767135041213,-365.77699845,0.00013699,2]
[400119516,1767135041223,-500.17663948,0.00013699,2]
[400119518,1767135041232,-318.65909539,0.00013699,2]
[400119520,1767135041242,-500.0,0.00013699,2]
[400119522,1767135041251,-500.0,0.00013699,2]
[400119524,1767135041260,-500.0,0.00013699,2]
[400119526,1767135041270,-500.0,0.00013699,2]
[400119528,1767135041280,-307.55036025,0.00013699,2]
[400119530,1767135041289,-165.01125145,0.00013699,2]
[400119532,1767135041299,-500.0,0.00013699,2]
[400119534,1767135041308,-500.0,0.00013699,2]
[400119536,1767135041318,-500.0,0.00013699,2]
[400119538,1767135041327,-500.0,0.00013699,2]
[400119540,1767135041336,-500.0,0.00013699,2]
[400119542,1767135041346,-500.0,0.00013699,2]
[400119544,1767135041355,-500.0,0.00013699,2]
[400119546,1767135041364,-500.0,0.00013699,2]
[400119548,1767135041373,-500.0,0.00013699,2]
[400119550,1767135041383,-500.0,0.00013699,2]
[400119552,1767135041392,-500.0,0.00013699,2]
[400119553,1767135041401,-500.0,0.00013699,2]
[400119556,1767135041411,-500.0,0.00013699,2]